[Event "World Prestigious University 2019"]
[Site "Tianjin"]
[Date "2019.11.26"]
[Round "3.17"]
[White "Zhong, Wei"]
[Black "Tarasov, Alexandr"]
[Result "0-1"]
[WhiteElo "1804"]
[BlackElo "2348"]
[PlyCount "106"]
[EventDate "2019.11.26"]
[EventType "team-tourn"]
[EventCountry "CHN"]
[TimeControl "1500+10"]
[WhiteClock "0:00:28"]
[BlackClock "0:00:15"]

1. e4 {[%emt 0:00:00]} Nf6 {[%emt 0:00:00]} 2. e5 {[%emt 0:00:00]} Nd5 {[%emt 0:00:00]} 3. c4 {[%emt 0:00:31]} Nb6 {[%emt 0:00:00]} 4. d4 {[%emt 0:00:04]} d6 {[%emt 0:00:00]} 5. exd6 cxd6 {[%emt 0:00:00]} 6. h3 {[%emt 0:06:18]} g6 {[%emt 0:00:07]} 7. Nf3 {[%emt 0:01:41]} Bg7 {[%emt 0:00:03]} 8. Bd3 {[%emt 0:00:44]} O-O {[%emt 0:00:06]} 9. O-O {[%emt 0:00:11]} e5 {[%emt 0:01:10]} 10. d5 {[%emt 0:02:25]} h6 {[%emt 0:00:57]} 11. Be2 {[%emt 0:02:21]} f5 {[%emt 0:01:31]} 12. Na3 {[%emt 0:02:17]} f4 {[%emt 0:03:02]} 13. Bd3 {[%emt 0:02:43]} Bf5 {[%emt 0:00:05]} 14. Bxf5 {[%emt 0:00:32]} gxf5 {[%emt 0:00:02]} 15. g3 {[%emt 0:01:53]} fxg3 {[%emt 0:00:57]} 16. fxg3 {[%emt 0:00:02]} N8d7 {[%emt 0:01:25]} 17. Nh4 {[%emt 0:01:17]} f4 {[%emt 0:00:54]} 18. Qg4 {[%emt 0:00:20]} Qg5 {[%emt 0:02:08]} 19. Rb1 {[%emt 0:00:32]} Nf6 {[%emt 0:01:56]} 20. Qxg5 {[%emt 0:00:10]} hxg5 {[%emt 0:00:01]} 21. Nf3 {[%emt 0:00:11]} Ne4 {[%emt 0:00:38]} 22. g4 {[%emt 0:00:20]} Bf6 {[%emt 0:01:32]} 23. Re1 {[%emt 0:01:09]} Ng3 {[%emt 0:03:03]} 24. Nd2 {[%emt 0:00:15]} Kf7 {[%emt 0:02:20]} 25. Nb5 {[%emt 0:00:24]} Ke7 {[%emt 0:00:20]} 26. Kg2 {[%emt 0:00:55]} Rh8 {[%emt 0:00:33]} 27. b3 {[%emt 0:00:56]} Kd7 {[%emt 0:03:08]} 28. Ba3 {[%emt 0:00:26]} Be7 {[%emt 0:00:13]} 29. Nc3 {[%emt 0:00:25]} Kc7 {[%emt 0:01:11]} 30. Nce4 {[%emt 0:00:16]} Nxe4 {[%emt 0:00:06]} 31. Nxe4 {[%emt 0:00:03]} Nd7 {[%emt 0:00:05]} 32. Rbd1 {[%emt 0:00:16]} b6 {[%emt 0:00:07]} 33. b4 {[%emt 0:00:14]} a5 {[%emt 0:00:14]} 34. b5 {[%emt 0:00:18]} Rag8 {[%emt 0:00:51]} 35. Rd3 {[%emt 0:00:14]} Rh6 {[%emt 0:00:09]} 36. Rh1 {[%emt 0:00:22]} Nf6 {[%emt 0:00:19]} 37. Nxf6 {[%emt 0:00:13]} Bxf6 {[%emt 0:00:04]} 38. Kf3 {[%emt 0:00:02]} Kd7 {[%emt 0:00:37]} 39. Ke4 {[%emt 0:00:02]} Rgh8 {[%emt 0:00:20]} 40. Kf5 {[%emt 0:00:05]} Be7 {[%emt 0:00:06]} 41. Rc3 {[%emt 0:00:21]} Ke8 {[%emt 0:00:28]} 42. Rf3 {[%emt 0:00:13]} Kf7 {[%emt 0:00:04]} 43. Bc1 {[%emt 0:00:10]} Bf6 {[%emt 0:00:26]} 44. Bd2 {[%emt 0:00:08]} Rc8 {[%emt 0:00:29]} 45. Rc1 {[%emt 0:00:06]} Rch8 {[%emt 0:00:06]} 46. Rh1 {[%emt 0:00:01]} Rc8 {[%emt 0:00:04]} 47. Rc1 {[%emt 0:00:01]} Rhh8 {[%emt 0:00:07]} 48. Be1 {[%emt 0:00:05]} Rc7 {[%emt 0:00:35]} 49. Bf2 {[%emt 0:00:01]} Rhc8 {[%emt 0:00:04]} 50. Bxb6 {[%emt 0:00:18]} Rxc4 {[%emt 0:00:04]} 51. Re1 {[%emt 0:00:40]} Rb8 {[%emt 0:00:10]} 52. Bxa5 {[%emt 0:00:08]} Rxb5 {[%emt 0:00:02]} 53. Bc3 {[%emt 0:00:16]} e4 {[%emt 0:00:23]} 0-1

[Event "World Prestigious University 2019"]
[Site "Tianjin"]
[Date "2019.11.26"]
[Round "3.18"]
[White "Bogachkova, Alena"]
[Black "Serbanescu, Diana-Maria"]
[Result "1-0"]
[WhiteElo "2080"]
[BlackElo "1990"]
[PlyCount "113"]
[EventDate "2019.11.26"]
[EventType "team-tourn"]
[EventCountry "CHN"]
[TimeControl "1500+10"]
[WhiteClock "0:00:37"]
[BlackClock "0:00:47"]

1. e4 {[%emt 0:00:00]} d6 {[%emt 0:00:00]} 2. d4 {[%emt 0:00:00]} Nf6 {[%emt 0:00:00]} 3. Nc3 {[%emt 0:00:00]} e5 {[%emt 0:00:00]} 4. Nf3 {[%emt 0:00:26]} Nbd7 {[%emt 0:00:00]} 5. g3 {[%emt 0:00:16]} Be7 {[%emt 0:00:33]} 6. Bg2 {[%emt 0:00:04]} O-O {[%emt 0:00:08]} 7. O-O {[%emt 0:00:04]} c6 {[%emt 0:00:01]} 8. a4 {[%emt 0:00:03]} a5 {[%emt 0:01:25]} 9. h3 {[%emt 0:00:24]} Re8 {[%emt 0:00:36]} 10. g4 {[%emt 0:08:30]} exd4 {[%emt 0:03:51]} 11. Nxd4 {[%emt 0:00:09]} Nc5 {[%emt 0:00:24]} 12. Nde2 {[%emt 0:02:19]} Be6 {[%emt 0:05:52]} 13. Nf4 {[%emt 0:01:14]} Nfd7 {[%emt 0:01:28]} 14. Be3 {[%emt 0:02:19]} Qc7 {[%emt 0:01:45]} 15. Qd2 {[%emt 0:02:47]} Rad8 {[%emt 0:01:27]} 16. Rad1 {[%emt 0:00:18]} Bc4 {[%emt 0:03:05]} 17. Rfe1 {[%emt 0:00:04]} f6 {[%emt 0:01:30]} 18. b3 {[%emt 0:00:25]} Bf7 {[%emt 0:00:01]} 19. Bd4 {[%emt 0:05:34]} Ne5 {[%emt 0:00:43]} 20. Nfe2 {[%emt 0:00:22]} Ne6 {[%emt 0:01:51]} 21. Be3 {[%emt 0:00:01]} Nc5 {[%emt 0:00:11]} 22. f4 {[%emt 0:00:29]} Ned7 {[%emt 0:00:01]} 23. Ng3 {[%emt 0:00:44]} Be6 {[%emt 0:00:31]} 24. Qf2 {[%emt 0:00:20]} Bf8 {[%emt 0:00:36]} 25. Rd2 {[%emt 0:00:37]} Bf7 {[%emt 0:00:17]} 26. Red1 {[%emt 0:00:27]} Bg6 {[%emt 0:00:51]} 27. Nf5 {[%emt 0:00:04]} Bxf5 {[%emt 0:00:09]} 28. gxf5 {[%emt 0:00:01]} b6 {[%emt 0:00:56]} 29. Kh1 {[%emt 0:00:04]} Nb8 {[%emt 0:00:29]} 30. Bd4 {[%emt 0:00:07]} Nba6 {[%emt 0:00:12]} 31. Bf3 {[%emt 0:00:26]} Kh8 {[%emt 0:00:21]} 32. Qg2 {[%emt 0:00:07]} Qf7 {[%emt 0:00:21]} 33. Rg1 {[%emt 0:00:15]} Rb8 {[%emt 0:00:30]} 34. Be2 {[%emt 0:00:04]} Red8 {[%emt 0:00:04]} 35. Bc4 {[%emt 0:00:09]} Qe7 {[%emt 0:00:15]} 36. Re2 {[%emt 0:00:16]} Nb4 {[%emt 0:00:13]} 37. Qf3 {[%emt 0:00:37]} Re8 {[%emt 0:00:12]} 38. e5 {[%emt 0:00:19]} dxe5 {[%emt 0:00:06]} 39. fxe5 {[%emt 0:00:02]} fxe5 {[%emt 0:00:20]} 40. Bxe5 {[%emt 0:00:03]} Qxe5 {[%emt 0:00:08]} 41. Rxe5 {[%emt 0:00:04]} Rxe5 {[%emt 0:00:01]} 42. Ne2 {[%emt 0:00:46]} Nxc2 {[%emt 0:00:10]} 43. Qc3 {[%emt 0:00:20]} Re3 {[%emt 0:00:14]} 44. Qxc2 {[%emt 0:00:05]} Rxh3+ {[%emt 0:00:04]} 45. Kg2 {[%emt 0:00:02]} Re3 {[%emt 0:00:10]} 46. Nf4 {[%emt 0:00:15]} Rbe8 {[%emt 0:00:07]} 47. Ne6 {[%emt 0:00:07]} Ne4 {[%emt 0:00:14]} 48. Kh2 {[%emt 0:00:15]} Bd6+ {[%emt 0:00:05]} 49. Kg2 {[%emt 0:00:10]} Rg3+ {[%emt 0:00:23]} 50. Kf1 {[%emt 0:00:02]} Rf3+ {[%emt 0:00:02]} 51. Ke1 {[%emt 0:00:12]} Bb4+ {[%emt 0:00:12]} 52. Kd1 {[%emt 0:00:02]} Nf2+ {[%emt 0:00:10]} 53. Ke2 {[%emt 0:00:20]} Rf4 {[%emt 0:00:15]} 54. Qc1 {[%emt 0:00:21]} Rxf5 {[%emt 0:00:07]} 55. Rxg7 {[%emt 0:00:08]} Rxe6+ {[%emt 0:00:04]} 56. Bxe6 {[%emt 0:00:01]} Kxg7 {[%emt 0:00:02]} 57. Bxf5 {[%emt 0:00:03]} 1-0

[Event "World Prestigious University 2019"]
[Site "Tianjin"]
[Date "2019.11.27"]
[Round "4.1"]
[White "TannerAustin, McNamara"]
[Black "Green, Michael L"]
[Result "1-0"]
[WhiteElo "1983"]
[BlackElo "2073"]
[PlyCount "95"]
[EventDate "2019.11.26"]
[EventType "team-tourn"]
[EventCountry "CHN"]
[TimeControl "1500+10"]
[WhiteClock "0:00:23"]
[BlackClock "0:00:23"]

1. d4 {[%emt 0:00:00]} Nf6 {[%emt 0:00:00]} 2. c4 {[%emt 0:00:00]} c5 {[%emt 0:00:00]} 3. d5 {[%emt 0:00:02]} e6 {[%emt 0:00:00]} 4. Nc3 {[%emt 0:00:06]} exd5 {[%emt 0:00:00]} 5. cxd5 {[%emt 0:00:02]} d6 {[%emt 0:00:00]} 6. Nf3 {[%emt 0:00:14]} g6 {[%emt 0:00:06]} 7. Bf4 {[%emt 0:00:59]} a6 {[%emt 0:01:36]} 8. a4 {[%emt 0:00:02]} Bg7 {[%emt 0:00:08]} 9. e3 {[%emt 0:00:02]} O-O {[%emt 0:00:08]} 10. h3 {[%emt 0:00:02]} Re8 {[%emt 0:00:13]} 11. Be2 {[%emt 0:00:34]} Ne4 {[%emt 0:00:14]} 12. Nxe4 {[%emt 0:00:39]} Rxe4 {[%emt 0:00:03]} 13. Nd2 {[%emt 0:00:05]} Rxf4 {[%emt 0:01:22]} 14. exf4 {[%emt 0:00:02]} Bxb2 {[%emt 0:00:04]} 15. Rb1 {[%emt 0:00:11]} Bg7 {[%emt 0:01:07]} 16. O-O {[%emt 0:00:04]} Qc7 {[%emt 0:01:02]} 17. Nc4 {[%emt 0:01:34]} Nd7 {[%emt 0:02:25]} 18. a5 {[%emt 0:02:08]} Bc3 {[%emt 0:04:45]} 19. Qa4 {[%emt 0:04:32]} Bb4 {[%emt 0:00:37]} 20. f5 {[%emt 0:02:05]} Rb8 {[%emt 0:02:34]} 21. Rb3 {[%emt 0:01:41]} Nf6 {[%emt 0:01:21]} 22. fxg6 {[%emt 0:00:19]} hxg6 {[%emt 0:00:51]} 23. Bf3 {[%emt 0:03:15]} Bd7 {[%emt 0:03:10]} 24. Qa1 {[%emt 0:00:03]} Bb5 {[%emt 0:00:33]} 25. Rc1 {[%emt 0:00:36]} Qd8 {[%emt 0:02:03]} 26. h4 {[%emt 0:00:47]} Bxc4 {[%emt 0:02:11]} 27. Rxc4 {[%emt 0:00:04]} Bd2 {[%emt 0:02:27]} 28. h5 {[%emt 0:00:43]} Bh6 {[%emt 0:00:02]} 29. hxg6 {[%emt 0:00:35]} fxg6 {[%emt 0:00:01]} 30. Qb1 {[%emt 0:00:02]} Qxa5 {[%emt 0:00:29]} 31. Qxg6+ {[%emt 0:01:49]} Bg7 {[%emt 0:00:01]} 32. Bg4 {[%emt 0:01:08]} Qe1+ {[%emt 0:00:18]} 33. Kh2 {[%emt 0:00:13]} Qe5+ {[%emt 0:00:01]} 34. g3 {[%emt 0:01:18]} Qxd5 {[%emt 0:00:24]} 35. Re3 {[%emt 0:00:09]} Nxg4+ {[%emt 0:00:21]} 36. Rxg4 {[%emt 0:00:07]} Qf7 {[%emt 0:00:06]} 37. Qc2 {[%emt 0:01:05]} Rf8 {[%emt 0:00:08]} 38. Rf4 {[%emt 0:00:38]} Qh5+ {[%emt 0:00:17]} 39. Rh4 {[%emt 0:00:03]} Qf5 {[%emt 0:00:07]} 40. Qb3+ {[%emt 0:03:02]} d5 {[%emt 0:00:01]} 41. Rf4 {[%emt 0:00:05]} Qh5+ {[%emt 0:00:03]} 42. Kg2 {[%emt 0:00:27]} Rxf4 {[%emt 0:00:21]} 43. gxf4 {[%emt 0:00:01]} b5 {[%emt 0:00:04]} 44. Rg3 {[%emt 0:00:20]} Qf5 {[%emt 0:00:16]} 45. Qc3 {[%emt 0:00:26]} d4 {[%emt 0:00:13]} 46. Qe1 {[%emt 0:00:05]} Qd5+ {[%emt 0:00:10]} 47. Kg1 {[%emt 0:00:02]} Kf7 {[%emt 0:00:04]} 48. Rg5 {[%emt 0:00:11]} 1-0

[Event "World Prestigious University 2019"]
[Site "Tianjin"]
[Date "2019.11.27"]
[Round "4.2"]
[White "Zhong, Wei"]
[Black "Lei, Sean"]
[Result "0-1"]
[WhiteElo "1804"]
[BlackElo "1895"]
[PlyCount "112"]
[EventDate "2019.11.26"]
[EventType "team-tourn"]
[EventCountry "CHN"]
[TimeControl "1500+10"]
[WhiteClock "0:01:38"]
[BlackClock "0:00:12"]

1. e4 {[%emt 0:00:00]} d6 {[%emt 0:00:00]} 2. d4 {[%emt 0:00:02]} Nf6 {[%emt 0:00:00]} 3. Bd3 {[%emt 0:00:51]} e5 {[%emt 0:00:00]} 4. d5 {[%emt 0:03:39]} c6 {[%emt 0:00:13]} 5. c4 {[%emt 0:00:58]} Be7 {[%emt 0:00:02]} 6. Ne2 {[%emt 0:01:26]} O-O {[%emt 0:00:10]} 7. O-O {[%emt 0:00:58]} Nbd7 {[%emt 0:00:10]} 8. f3 {[%emt 0:00:51]} Nc5 {[%emt 0:01:01]} 9. Bc2 {[%emt 0:01:02]} a5 {[%emt 0:00:08]} 10. Nbc3 {[%emt 0:00:50]} cxd5 {[%emt 0:03:28]} 11. cxd5 {[%emt 0:00:31]} Nfd7 {[%emt 0:03:04]} 12. Ng3 {[%emt 0:02:17]} b5 {[%emt 0:01:53]} 13. Nf5 {[%emt 0:02:03]} b4 {[%emt 0:00:28]} 14. Na4 {[%emt 0:01:59]} Ba6 {[%emt 0:00:39]} 15. Rf2 {[%emt 0:01:15]} g6 {[%emt 0:01:52]} 16. Nxe7+ {[%emt 0:01:34]} Qxe7 {[%emt 0:00:03]} 17. Bh6 {[%emt 0:01:46]} Rfc8 {[%emt 0:00:30]} 18. Qd2 {[%emt 0:01:08]} Bb5 {[%emt 0:01:36]} 19. Nxc5 {[%emt 0:00:12]} Rxc5 {[%emt 0:00:05]} 20. Be3 {[%emt 0:00:37]} Rc7 {[%emt 0:00:08]} 21. Bd3 {[%emt 0:00:13]} Bxd3 {[%emt 0:00:27]} 22. Qxd3 {[%emt 0:00:02]} Nc5 {[%emt 0:00:19]} 23. Bxc5 {[%emt 0:01:07]} Rxc5 {[%emt 0:00:06]} 24. Rc2 {[%emt 0:00:46]} Qa7 {[%emt 0:00:32]} 25. Kf1 {[%emt 0:00:30]} Rac8 {[%emt 0:03:11]} 26. Rac1 {[%emt 0:00:20]} Kg7 {[%emt 0:02:03]} 27. g3 {[%emt 0:01:31]} h5 {[%emt 0:00:23]} 28. f4 {[%emt 0:00:40]} Rxc2 {[%emt 0:00:47]} 29. Rxc2 {[%emt 0:00:03]} Rxc2 {[%emt 0:00:03]} 30. Qxc2 {[%emt 0:00:02]} exf4 {[%emt 0:00:12]} 31. gxf4 {[%emt 0:00:11]} Qe3 {[%emt 0:00:06]} 32. Kg2 {[%emt 0:00:40]} Qxf4 {[%emt 0:00:04]} 33. Qd3 {[%emt 0:00:05]} Qe5 {[%emt 0:00:22]} 34. Qc2 {[%emt 0:00:16]} g5 {[%emt 0:00:27]} 35. a3 {[%emt 0:00:06]} bxa3 {[%emt 0:00:08]} 36. bxa3 {[%emt 0:00:03]} g4 {[%emt 0:00:21]} 37. h3 {[%emt 0:00:20]} Qf4 {[%emt 0:00:44]} 38. hxg4 {[%emt 0:00:11]} hxg4 {[%emt 0:00:04]} 39. Qc3+ {[%emt 0:00:03]} Kg6 {[%emt 0:00:17]} 40. Qd3 {[%emt 0:00:15]} Kg5 {[%emt 0:00:31]} 41. Qd4 {[%emt 0:00:14]} Qf3+ {[%emt 0:00:07]} 42. Kg1 {[%emt 0:00:03]} f6 {[%emt 0:01:25]} 43. Qd2+ {[%emt 0:00:10]} Qf4 {[%emt 0:00:06]} 44. Qxa5 {[%emt 0:00:10]} Qe3+ {[%emt 0:00:21]} 45. Kf1 {[%emt 0:00:17]} g3 {[%emt 0:01:50]} 46. Qe1 {[%emt 0:00:09]} Qxe1+ {[%emt 0:00:05]} 47. Kxe1 {[%emt 0:00:01]} Kf4 {[%emt 0:00:01]} 48. Kf1 {[%emt 0:00:10]} Kxe4 {[%emt 0:00:11]} 49. Kg2 {[%emt 0:00:14]} Kxd5 {[%emt 0:00:03]} 50. Kxg3 {[%emt 0:00:03]} Kc4 {[%emt 0:00:12]} 51. a4 {[%emt 0:00:20]} Kb4 {[%emt 0:00:02]} 52. Kf4 {[%emt 0:00:01]} d5 {[%emt 0:01:25]} 53. Ke3 {[%emt 0:00:10]} f5 {[%emt 0:00:09]} 54. Kd4 {[%emt 0:00:24]} f4 {[%emt 0:00:04]} 55. a5 {[%emt 0:00:08]} Kxa5 {[%emt 0:00:02]} 56. Kxd5 {[%emt 0:00:11]} f3 {[%emt 0:00:02]} 0-1

[Event "World Prestigious University 2019"]
[Site "Tianjin"]
[Date "2019.11.27"]
[Round "4.3"]
[White "Zhou, Qiyu"]
[Black "Serbanescu, Diana-Maria"]
[Result "1-0"]
[WhiteElo "2216"]
[BlackElo "1990"]
[PlyCount "139"]
[EventDate "2019.11.26"]
[EventType "team-tourn"]
[EventCountry "CHN"]
[TimeControl "1500+10"]
[WhiteClock "0:00:55"]
[BlackClock "0:02:04"]

1. e4 {[%emt 0:00:00]} d6 {[%emt 0:00:00]} 2. d4 {[%emt 0:00:00]} Nf6 {[%emt 0:00:00]} 3. Nc3 {[%emt 0:00:00]} e5 {[%emt 0:00:00]} 4. Nf3 {[%emt 0:00:00]} Nbd7 {[%emt 0:00:00]} 5. g3 {[%emt 0:00:04]} Be7 {[%emt 0:00:15]} 6. Bg2 {[%emt 0:00:02]} O-O {[%emt 0:00:03]} 7. O-O {[%emt 0:00:02]} c6 {[%emt 0:00:23]} 8. a4 {[%emt 0:00:01]} a5 {[%emt 0:00:39]} 9. b3 {[%emt 0:00:07]} Re8 {[%emt 0:00:51]} 10. Re1 {[%emt 0:00:07]} Bf8 {[%emt 0:00:31]} 11. Bb2 {[%emt 0:00:16]} exd4 {[%emt 0:03:02]} 12. Nxd4 {[%emt 0:00:03]} Nc5 {[%emt 0:00:35]} 13. h3 {[%emt 0:00:34]} Ne6 {[%emt 0:01:32]} 14. Qd2 {[%emt 0:01:38]} Nxd4 {[%emt 0:01:40]} 15. Qxd4 {[%emt 0:00:01]} Qc7 {[%emt 0:00:02]} 16. Rad1 {[%emt 0:00:16]} Be6 {[%emt 0:00:13]} 17. Ne2 {[%emt 0:00:28]} Rad8 {[%emt 0:00:47]} 18. Nf4 {[%emt 0:00:55]} Bc8 {[%emt 0:01:22]} 19. c4 {[%emt 0:02:40]} b6 {[%emt 0:04:43]} 20. Ne2 {[%emt 0:02:54]} Be6 {[%emt 0:02:50]} 21. Nf4 {[%emt 0:01:16]} Bc8 {[%emt 0:00:02]} 22. Kh2 {[%emt 0:01:25]} Bb7 {[%emt 0:00:39]} 23. Qd2 {[%emt 0:01:40]} Qe7 {[%emt 0:01:40]} 24. Qc2 {[%emt 0:04:10]} Nd7 {[%emt 0:01:11]} 25. Ne2 {[%emt 0:00:40]} Nc5 {[%emt 0:02:08]} 26. Nd4 {[%emt 0:00:32]} g6 {[%emt 0:00:25]} 27. Qc3 {[%emt 0:01:32]} Qe5 {[%emt 0:00:10]} 28. f4 {[%emt 0:00:27]} Qg7 {[%emt 0:00:03]} 29. Qc2 {[%emt 0:00:47]} Qh6 {[%emt 0:00:37]} 30. Rf1 {[%emt 0:01:11]} Bg7 {[%emt 0:01:09]} 31. f5 {[%emt 0:00:59]} Be5 {[%emt 0:00:02]} 32. Qf2 {[%emt 0:00:32]} f6 {[%emt 0:00:27]} 33. Kh1 {[%emt 0:01:52]} Qg7 {[%emt 0:00:07]} 34. Rfe1 {[%emt 0:00:10]} Re7 {[%emt 0:00:29]} 35. Ba3 {[%emt 0:00:17]} Ree8 {[%emt 0:00:02]} 36. Bxc5 {[%emt 0:00:03]} bxc5 {[%emt 0:00:11]} 37. Ne6 {[%emt 0:00:01]} Rxe6 {[%emt 0:00:02]} 38. fxe6 {[%emt 0:00:01]} Qe7 {[%emt 0:00:05]} 39. Rd3 {[%emt 0:00:18]} Bc8 {[%emt 0:00:08]} 40. Qd2 {[%emt 0:00:05]} Kg7 {[%emt 0:00:10]} 41. Qxa5 {[%emt 0:00:03]} Bxe6 {[%emt 0:00:07]} 42. Qb6 {[%emt 0:00:37]} Qd7 {[%emt 0:00:46]} 43. g4 {[%emt 0:00:02]} Ra8 {[%emt 0:00:16]} 44. Re2 {[%emt 0:01:07]} Qc8 {[%emt 0:00:12]} 45. Ra2 {[%emt 0:00:37]} Ra6 {[%emt 0:00:08]} 46. a5 {[%emt 0:00:02]} Rxb6 {[%emt 0:01:02]} 47. axb6 {[%emt 0:00:01]} d5 {[%emt 0:00:08]} 48. cxd5 {[%emt 0:00:14]} cxd5 {[%emt 0:00:07]} 49. Ra7+ {[%emt 0:00:04]} Kh6 {[%emt 0:00:14]} 50. exd5 {[%emt 0:00:03]} Bd7 {[%emt 0:00:11]} 51. d6 {[%emt 0:01:18]} Bc6 {[%emt 0:00:06]} 52. d7 {[%emt 0:00:11]} Bxg2+ {[%emt 0:00:08]} 53. Kxg2 {[%emt 0:00:01]} Qc6+ 54. Kf2 {[%emt 0:00:58]} Qxb6 {[%emt 0:00:01]} 55. d8=Q {[%emt 0:00:05]} Qxa7 {[%emt 0:00:02]} 56. Kf3 {[%emt 0:00:19]} Qb7+ {[%emt 0:00:07]} 57. Qd5 {[%emt 0:00:01]} Qb4 {[%emt 0:01:08]} 58. Qc4 {[%emt 0:00:04]} Qxc4 {[%emt 0:00:07]} 59. bxc4 {[%emt 0:00:01]} Kg5 {[%emt 0:00:26]} 60. Rd5 {[%emt 0:00:01]} Kh4 {[%emt 0:00:01]} 61. Rxc5 {[%emt 0:00:04]} Kxh3 {[%emt 0:00:02]} 62. Rxe5 {[%emt 0:00:11]} fxe5 {[%emt 0:00:07]} 63. c5 {[%emt 0:00:01]} h5 {[%emt 0:00:07]} 64. gxh5 {[%emt 0:00:05]} gxh5 {[%emt 0:00:35]} 65. c6 {[%emt 0:00:02]} e4+ {[%emt 0:00:01]} 66. Kxe4 {[%emt 0:00:01]} Kg2 {[%emt 0:00:04]} 67. c7 {[%emt 0:00:01]} h4 {[%emt 0:00:01]} 68. c8=Q {[%emt 0:00:02]} h3 {[%emt 0:00:02]} 69. Qg4+ {[%emt 0:00:11]} Kh2 {[%emt 0:00:04]} 70. Kf3 {[%emt 0:00:03]} 1-0

[Event "World Prestigious University 2019"]
[Site "Tianjin"]
[Date "2019.11.27"]
[Round "4.4"]
[White "Wang, Yue"]
[Black "Kukhmazov, Arsen"]
[Result "1-0"]
[WhiteElo "2674"]
[BlackElo "2377"]
[PlyCount "62"]
[EventDate "2019.11.26"]
[EventType "team-tourn"]
[EventCountry "CHN"]
[TimeControl "1500+10"]
[WhiteClock "0:02:36"]
[BlackClock "0:02:45"]

1. d4 {[%emt 0:00:00]} Nf6 {[%emt 0:00:05]} 2. c4 {[%emt 0:00:00]} e6 {[%emt 0:00:02]} 3. Nf3 {[%emt 0:00:04]} d5 {[%emt 0:00:05]} 4. g3 {[%emt 0:00:09]} Bb4+ {[%emt 0:00:09]} 5. Bd2 {[%emt 0:00:04]} Be7 {[%emt 0:00:01]} 6. Bg2 {[%emt 0:00:05]} O-O {[%emt 0:00:02]} 7. O-O {[%emt 0:00:14]} Nbd7 {[%emt 0:00:03]} 8. Qb3 {[%emt 0:00:37]} Nb6 {[%emt 0:00:16]} 9. c5 {[%emt 0:00:23]} Nc4 {[%emt 0:00:02]} 10. Bf4 {[%emt 0:01:00]} b6 {[%emt 0:00:01]} 11. c6 {[%emt 0:00:23]} a5 {[%emt 0:00:03]} 12. Qc2 {[%emt 0:01:56]} Ne4 {[%emt 0:02:07]} 13. b3 {[%emt 0:06:04]} Ncd6 {[%emt 0:00:22]} 14. a4 {[%emt 0:01:01]} Ba6 {[%emt 0:01:01]} 15. Na3 {[%emt 0:00:02]} b5 {[%emt 0:06:43]} 16. axb5 {[%emt 0:08:20]} Nxb5 {[%emt 0:00:02]} 17. Nxb5 {[%emt 0:00:01]} Bxb5 {[%emt 0:00:01]} 18. Ne5 {[%emt 0:00:01]} Nf6 {[%emt 0:04:09]} 19. Rfc1 {[%emt 0:02:34]} Ra6 {[%emt 0:05:26]} 20. g4 {[%emt 0:00:10]} Bd6 {[%emt 0:00:10]} 21. Bf3 {[%emt 0:00:56]} Bxe5 {[%emt 0:03:27]} 22. dxe5 {[%emt 0:01:20]} Rxc6 {[%emt 0:00:01]} 23. Qd2 {[%emt 0:00:01]} Rxc1+ {[%emt 0:00:25]} 24. Rxc1 {[%emt 0:00:04]} Nd7 {[%emt 0:00:27]} 25. Qxa5 {[%emt 0:00:18]} c6 {[%emt 0:00:01]} 26. Qxd8 {[%emt 0:00:11]} Re8 {[%emt 0:00:01]} 27. Ra1 Rxd8 {[%emt 0:01:40]} 28. h4 {[%emt 0:00:20]} Nc5 29. b4 {[%emt 0:00:10]} h6 {[%emt 0:00:38]} 30. Bd2 {[%emt 0:00:28]} Na6 {[%emt 0:00:02]} 31. Kg2 {[%emt 0:00:29]} Ra8 {[%emt 0:00:02]} 1-0

[Event "World Prestigious University 2019"]
[Site "Tianjin"]
[Date "2019.11.27"]
[Round "4.5"]
[White "Tarasov, Alexandr"]
[Black "Li, Yankai"]
[Result "1/2-1/2"]
[WhiteElo "2348"]
[BlackElo "2432"]
[PlyCount "74"]
[EventDate "2019.11.26"]
[EventType "team-tourn"]
[EventCountry "CHN"]
[TimeControl "1500+10"]
[WhiteClock "0:13:14"]
[BlackClock "0:00:59"]

1. c4 {[%emt 0:00:18]} c5 {[%emt 0:00:00]} 2. Nf3 {[%emt 0:01:25]} Nc6 {[%emt 0:00:00]} 3. d4 {[%emt 0:00:21]} cxd4 {[%emt 0:00:00]} 4. Nxd4 {[%emt 0:00:02]} Nf6 {[%emt 0:00:00]} 5. Nc3 {[%emt 0:00:36]} e6 {[%emt 0:00:02]} 6. Bf4 {[%emt 0:01:49]} d5 {[%emt 0:00:31]} 7. cxd5 {[%emt 0:03:05]} Nxd5 {[%emt 0:00:03]} 8. Nxc6 {[%emt 0:00:53]} bxc6 {[%emt 0:00:02]} 9. Bd2 {[%emt 0:00:35]} Bb4 {[%emt 0:00:02]} 10. g3 {[%emt 0:05:00]} Nxc3 {[%emt 0:01:17]} 11. Bxc3 {[%emt 0:00:53]} Bxc3+ {[%emt 0:00:02]} 12. bxc3 {[%emt 0:00:01]} Qxd1+ {[%emt 0:03:15]} 13. Kxd1 {[%emt 0:00:43]} Rb8 {[%emt 0:00:22]} 14. Kc2 {[%emt 0:00:55]} e5 {[%emt 0:00:35]} 15. e4 {[%emt 0:00:44]} Be6 {[%emt 0:00:02]} 16. Bd3 {[%emt 0:00:50]} Ke7 {[%emt 0:00:02]} 17. f4 {[%emt 0:01:24]} f6 {[%emt 0:00:07]} 18. Rhb1 {[%emt 0:01:22]} Rb6 {[%emt 0:00:44]} 19. c4 {[%emt 0:02:05]} Kd6 {[%emt 0:00:16]} 20. Kc3 {[%emt 0:00:19]} Rhb8 {[%emt 0:00:27]} 21. Rb3 {[%emt 0:00:12]} a5 {[%emt 0:01:46]} 22. Rab1 {[%emt 0:00:51]} Kc5 {[%emt 0:00:24]} 23. Rxb6 {[%emt 0:01:11]} Rxb6 {[%emt 0:00:01]} 24. Rxb6 {[%emt 0:00:12]} Kxb6 {[%emt 0:00:02]} 25. f5 {[%emt 0:00:30]} Bf7 {[%emt 0:00:10]} 26. g4 {[%emt 0:00:14]} h5 {[%emt 0:02:34]} 27. Be2 {[%emt 0:00:52]} h4 {[%emt 0:00:52]} 28. h3 {[%emt 0:00:43]} Kc5 {[%emt 0:00:02]} 29. a3 {[%emt 0:00:03]} Kd6 {[%emt 0:00:11]} 30. Bd3 {[%emt 0:00:06]} Be8 {[%emt 0:00:13]} 31. Bc2 {[%emt 0:00:12]} Ke7 {[%emt 0:00:38]} 32. c5 {[%emt 0:00:20]} Bf7 {[%emt 0:02:55]} 33. Bb3 {[%emt 0:00:12]} Bxb3 {[%emt 0:00:15]} 34. Kxb3 {[%emt 0:00:01]} Kd7 {[%emt 0:00:01]} 35. Ka4 {[%emt 0:00:15]} Kc7 {[%emt 0:00:01]} 36. Kxa5 {[%emt 0:00:02]} Kb7 {[%emt 0:00:01]} 37. a4 {[%emt 0:00:55]} Ka7 {[%emt 0:00:01]} 1/2-1/2